bitfinex/quotes_BTCUSD_20241119
["timestamp","ask_amount","ask_price","bid_price","bid_amount"]
[1731989510808,0.25311705,91361.0,91360.0,0.22981926]
[1731989511032,0.25311697,91361.0,91360.0,0.22981926]
[1731989511490,0.25267601,91361.0,91360.0,0.22981926]
[1731989511918,0.10552188,91361.0,91360.0,0.22981926]
[1731989512142,0.46769491,91361.0,91360.0,0.22981926]
[1731989512576,0.10552188,91361.0,91360.0,0.22981926]
[1731989512763,0.25270637,91361.0,91360.0,0.22981926]
[1731989513223,0.10552188,91361.0,91360.0,0.22981926]
[1731989513709,0.25270276,91361.0,91360.0,0.22981926]
[1731989514138,0.46772344,91361.0,91360.0,0.22981926]
[1731989514571,0.10552381,91361.0,91360.0,0.22981926]
[1731989514973,0.46771003,91361.0,91360.0,0.22981926]
[1731989515241,0.10552381,91361.0,91360.0,0.22981926]
[1731989515483,0.46772158,91361.0,91360.0,0.22981926]
[1731989516108,0.10552381,91361.0,91360.0,0.22981926]
[1731989516319,0.10552381,91361.0,91360.0,0.0028543]
[1731989516594,0.46767037,91361.0,91360.0,0.0028543]
[1731989516820,0.467673,91361.0,91360.0,0.0028543]
[1731989517024,0.66388505,91361.0,91360.0,0.1123113]
[1731989517260,0.66388505,91361.0,91360.0,0.0028543]
[1731989518133,0.467673,91361.0,91360.0,0.0028543]
[1731989518344,0.66388505,91361.0,91360.0,0.0028543]
[1731989523690,0.467673,91361.0,91360.0,0.0028543]
[1731989523915,0.65592202,91361.0,91360.0,0.0028543]
[1731989524377,0.459673,91361.0,91360.0,0.0028543]
[1731989525270,0.569128,91361.0,91360.0,0.0028543]
[1731989525506,0.81464799,91361.0,91360.0,0.0028543]
[1731989525729,0.70519299,91361.0,91360.0,0.0028543]
[1731989529304,0.023,91360.0,91355.0,0.01116388]
[1731989529518,0.09821449,91356.0,91355.0,0.01116388]
[1731989529735,0.15136733,91356.0,91355.0,0.12062588]
[1731989530157,0.15940765,91356.0,91355.0,0.12062588]
[1731989530608,0.15940765,91356.0,91355.0,0.12662588]
[1731989530835,0.17340765,91356.0,91355.0,0.12762588]
[1731989531054,0.17340765,91356.0,91355.0,0.12162588]
[1731989531285,0.17340765,91356.0,91355.0,0.12762588]
[1731989533174,0.17340765,91356.0,91355.0,0.12848018]
[1731989533596,0.17340765,91356.0,91355.0,0.14558563]
[1731989536111,0.07518942,91356.0,91355.0,0.14558563]
[1731989536541,0.17340617,91356.0,91355.0,0.14558563]
[1731989537698,0.17340617,91356.0,91355.0,0.2159306]
[1731989538153,0.14069673,91356.0,91355.0,0.2159306]
[1731989538393,0.04247998,91356.0,91355.0,0.1064686]
[1731989538609,0.51317246,91356.0,91355.0,0.02495975]
[1731989538832,0.71680078,91356.0,91355.0,0.02495975]
[1731989539310,0.69405921,91356.0,91355.0,0.02495975]
[1731989539558,0.69405921,91356.0,91355.0,0.0078543]
[1731989540025,0.69397884,91356.0,91355.0,0.0078543]
[1731989540987,0.68153544,91356.0,91355.0,0.0078543]
[1731989541222,0.57207444,91356.0,91355.0,0.0078543]
[1731989541435,0.6038433,91356.0,91355.0,0.19882615]
[1731989541656,0.40751189,91356.0,91355.0,0.19882615]
[1731989542124,0.04503658,91356.0,91355.0,0.19882615]
[1731989542342,0.12020726,91356.0,91355.0,0.19882615]
[1731989542791,0.02203658,91356.0,91355.0,0.19882615]
[1731989543009,0.12020726,91356.0,91355.0,0.19882615]
[1731989543229,0.02203658,91356.0,91355.0,0.19882615]
[1731989543723,0.014,91356.0,91355.0,0.19882615]
[1731989543946,0.014,91356.0,91355.0,0.20101375]
[1731989544417,0.037,91356.0,91355.0,0.1173173]
[1731989544653,0.037,91356.0,91355.0,0.24191533]
[1731989544873,0.04503357,91356.0,91355.0,0.24191533]
[1731989547569,0.04503357,91356.0,91355.0,0.37291533]
[1731989548008,0.037,91356.0,91355.0,0.37291533]
[1731989549368,0.04502145,91356.0,91355.0,0.37291533]
[1731989552226,0.04502145,91356.0,91355.0,0.24191533]
[1731989553334,0.06547656,91356.0,91355.0,0.24191533]
[1731989553969,0.05747656,91356.0,91355.0,0.24191533]
[1731989554403,0.03702145,91356.0,91355.0,0.24191533]
[1731989555078,0.05747914,91356.0,91355.0,0.24191533]
[1731989555289,0.03702145,91356.0,91355.0,0.24191533]
[1731989557287,0.03873005,91356.0,91355.0,0.24191533]
[1731989561500,0.0307086,91356.0,91355.0,0.24191533]
[1731989562841,0.03876224,91356.0,91355.0,0.24191533]
[1731989564445,0.05921089,91356.0,91355.0,0.24191533]
[1731989564874,0.03876224,91356.0,91355.0,0.24191533]
[1731989565100,0.05921099,91356.0,91355.0,0.24191533]
[1731989565978,0.13721099,91356.0,91355.0,0.16040648]
[1731989566190,0.05921099,91356.0,91355.0,0.24191533]
[1731989568459,0.05921099,91356.0,91355.0,0.08936315]
[1731989568919,0.03076224,91356.0,91355.0,0.08936315]
[1731989569163,0.05121712,91356.0,91355.0,0.08936315]
[1731989570453,0.03076224,91356.0,91355.0,0.08936315]
[1731989570672,0.05123082,91356.0,91355.0,0.19882615]
[1731989570896,0.4969711,91356.0,91355.0,0.0078543]
[1731989571118,0.81404173,91356.0,91355.0,0.0078543]
[1731989571585,0.152,91354.0,91351.0,0.0008544]
[1731989571814,0.271466,91352.0,91351.0,0.0008544]
[1731989572036,0.79628449,91352.0,91351.0,0.0008544]
[1731989572255,1.0987547,91352.0,91351.0,0.0008544]
[1731989572478,1.0987547,91352.0,91310.0,0.3216]
[1731989572479,0.142477,91343.0,91324.0,0.08150885]
[1731989572694,0.142477,91343.0,91325.0,0.16445655]
[1731989572695,0.79629549,91343.0,91325.0,0.16445655]
[1731989572907,0.80434019,91343.0,91342.0,0.01796382]
[1731989573144,0.80434019,91343.0,91342.0,0.00796382]
[1731989574774,1.06552658,91343.0,91342.0,0.00896382]
[1731989575237,0.82634019,91343.0,91342.0,0.00996382]
[1731989575693,1.07146324,91343.0,91342.0,0.00996382]
[1731989576422,0.83634019,91343.0,91342.0,0.00996382]
[1731989576673,0.86900301,91343.0,91342.0,0.00996382]
[1731989576901,0.91710898,91343.0,91342.0,0.00996382]
[1731989577355,1.01710898,91343.0,91342.0,0.00996382]
[1731989577588,1.00110898,91343.0,91342.0,0.00896382]
[1731989577824,1.01710898,91343.0,91342.0,0.00996382]
[1731989578073,1.02610898,91343.0,91342.0,0.01096382]
[1731989578327,1.3198356,91343.0,91342.0,0.01096382]
[1731989578551,1.2888356,91343.0,91342.0,0.00796382]
[1731989578805,1.03710898,91343.0,91342.0,0.01196382]
[1731989579041,0.023,91318.0,91313.0,0.08236375]
[1731989579261,0.02037928,91317.0,91313.0,0.08236375]
[1731989579484,0.04337928,91316.0,91313.0,0.08236375]
[1731989579733,0.023,91314.0,91313.0,0.08236375]
[1731989579963,0.04337928,91314.0,91313.0,0.08236375]
[1731989580216,0.0511607,91314.0,91313.0,0.08236375]
[1731989580465,0.0511607,91314.0,91313.0,0.0008549]
[1731989580466,0.27973525,91314.0,91313.0,0.0008549]
[1731989580689,0.40783525,91314.0,91313.0,0.0008549]
[1731989581147,0.40983525,91314.0,91313.0,0.0138549]
[1731989581378,0.44244211,91314.0,91313.0,0.0228549]
[1731989581596,0.40983525,91314.0,91313.0,0.0228549]
[1731989581857,0.40983525,91314.0,91313.0,0.0188549]
[1731989582582,0.023,91310.0,91299.0,0.08150885]
[1731989582808,0.219031,91311.0,91299.0,0.08150885]
[1731989582809,0.023,91308.0,91299.0,0.08150885]
[1731989583057,0.023,91305.0,91299.0,0.08150885]
[1731989583293,0.109523,91305.0,91299.0,0.08150885]
[1731989583543,0.023,91304.0,91299.0,0.08150885]
[1731989583787,0.03075922,91304.0,91299.0,0.08150885]
[1731989584003,0.13228322,91304.0,91299.0,0.09650885]
[1731989584466,0.02275922,91304.0,91299.0,0.08150885]
[1731989584695,0.02275922,91304.0,91299.0,0.09350885]
[1731989584696,0.109525,91303.0,91299.0,0.09350885]
[1731989585406,0.00775922,91302.0,91299.0,0.09350885]
[1731989585850,0.023,91301.0,91299.0,0.09350885]
[1731989586047,0.023,91301.0,91299.0,0.08150885]
[1731989586319,0.03064578,91300.0,91299.0,0.08150885]
[1731989586596,0.03064578,91300.0,91299.0,0.09450885]
[1731989587053,0.03064578,91300.0,91299.0,0.19103885]
[1731989587297,0.03064578,91300.0,91299.0,0.20403885]
[1731989587519,0.023,91300.0,91299.0,0.09450885]
[1731989587759,0.023,91305.0,91299.0,0.08150885]
[1731989587997,0.03564578,91300.0,91299.0,0.20403885]
[1731989588234,0.028,91300.0,91299.0,0.20403885]
[1731989588707,0.01264578,91300.0,91299.0,0.33233885]
[1731989589183,0.005,91300.0,91299.0,0.33233885]
[1731989589433,0.023,91311.0,91299.0,0.20980885]
[1731989589659,0.229016,91318.0,91299.0,0.20980885]
[1731989589660,0.02031462,91317.0,91310.0,0.1630177]
[1731989589921,0.16445655,91317.0,91316.0,0.08150885]
[1731989590367,0.109497,91326.0,91316.0,0.08150885]
[1731989590591,0.13156781,91325.0,91316.0,0.08150885]
[1731989590837,0.02250526,91325.0,91321.0,0.08150885]
[1731989591081,0.16445655,91328.0,91322.0,0.0776]
[1731989591310,0.109487,91335.0,91329.0,0.08150885]
[1731989591527,0.10906255,91334.0,91322.0,0.0776]
[1731989591754,0.11125042,91334.0,91321.0,0.08150885]
[1731989592008,0.16445655,91327.0,91316.0,0.015]
[1731989592246,0.11125042,91326.0,91316.0,0.015]
[1731989592491,0.109503,91322.0,91309.0,0.023]
[1731989592722,0.00218787,91321.0,91308.0,0.023]
[1731989592975,0.00218787,91321.0,91314.0,0.109512]
[1731989593200,0.00218787,91321.0,91311.0,0.08150885]
[1731989593426,0.00218787,91321.0,91315.0,0.10951]
[1731989593643,0.10906255,91320.0,91316.0,0.002]
[1731989593881,0.109508,91317.0,91316.0,0.002]
[1731989594103,0.109508,91317.0,91304.0,0.08150885]
[1731989594104,0.109511,91315.0,91304.0,0.08150885]
[1731989594350,0.11125042,91317.0,91311.0,0.008]
[1731989594351,0.11169987,91314.0,91311.0,0.008]
[1731989594569,0.00218787,91314.0,91311.0,0.008]
[1731989594788,0.109512,91314.0,91311.0,0.008]
[1731989595007,0.00218787,91315.0,91311.0,0.008]
[1731989595256,0.11169887,91315.0,91311.0,0.008]
[1731989595465,0.11169887,91315.0,91309.0,0.109517]
[1731989596617,0.11169887,91315.0,91309.0,0.116517]
[1731989596618,0.11269887,91315.0,91309.0,0.116517]
[1731989596895,0.11469887,91315.0,91310.0,0.109516]
[1731989597335,0.14721638,91315.0,91310.0,0.109516]
[1731989597590,0.11469887,91315.0,91310.0,0.109516]
[1731989597808,0.11269887,91315.0,91310.0,0.109516]
[1731989598044,0.109514,91313.0,91309.0,0.007]
[1731989598276,0.11125042,91312.0,91309.0,0.007]
[1731989598503,0.25335862,91312.0,91309.0,0.007]
[1731989598723,0.0325932,91311.0,91306.0,0.10952]
[1731989598951,0.10906255,91311.0,91306.0,0.10952]
[1731989599163,0.21857755,91311.0,91310.0,0.006]
[1731989599634,0.21857755,91311.0,91306.0,0.10952]
[1731989599848,0.10906255,91311.0,91310.0,0.109517]
[1731989600503,0.001,91311.0,91310.0,0.109517]
[1731989600750,0.001,91311.0,91310.0,0.112517]
[1731989600993,0.002,91311.0,91310.0,0.112517]
[1731989601473,0.00836688,91311.0,91310.0,0.112517]
[1731989601935,0.00836688,91311.0,91310.0,0.109517]
[1731989602381,0.00836688,91311.0,91310.0,0.111517]
[1731989602620,0.002,91311.0,91310.0,0.187917]
[1731989602852,0.27395855,91323.0,91317.0,0.109507]
[1731989602853,0.30655175,91323.0,91317.0,0.109507]
[1731989603076,0.30655175,91323.0,91318.0,0.109507]
[1731989603077,0.12948489,91322.0,91318.0,0.109507]
[1731989603299,0.02042234,91321.0,91318.0,0.109507]
[1731989603527,0.12948489,91320.0,91313.0,0.219024]
[1731989603752,0.12948489,91320.0,91311.0,0.0479]
[1731989604001,0.02042234,91319.0,91318.0,0.109507]
[1731989606304,0.02842234,91319.0,91318.0,0.109507]
[1731989606974,0.04442234,91319.0,91318.0,0.109507]
[1731989608757,0.04443906,91319.0,91318.0,0.109507]
[1731989609031,0.07714157,91319.0,91318.0,0.109507]
[1731989610335,0.07714157,91319.0,91316.0,0.109509]
[1731989610555,0.07714157,91319.0,91318.0,0.109507]
[1731989610556,0.024,91319.0,91318.0,0.109507]
[1731989610770,0.07713735,91319.0,91318.0,0.109507]
[1731989611209,0.06113735,91319.0,91318.0,0.109507]
[1731989611429,0.05313735,91319.0,91318.0,0.109507]
[1731989611673,0.05713735,91319.0,91318.0,0.109507]
[1731989611897,0.06913735,91319.0,91318.0,0.109507]
[1731989612235,0.06513735,91319.0,91318.0,0.109507]
[1731989612463,0.07113735,91319.0,91318.0,0.202207]
[1731989612707,0.07113735,91319.0,91318.0,0.325207]
[1731989612932,0.03843744,91319.0,91318.0,0.371807]
[1731989613163,0.018,91319.0,91318.0,0.371807]
[1731989613373,0.006,91319.0,91318.0,0.371807]
[1731989613601,0.022,91319.0,91318.0,0.48286955]
[1731989613824,0.014,91319.0,91318.0,0.48286955]
[1731989614055,0.16445655,91338.0,91337.0,0.119484]
[1731989614303,0.16445655,91338.0,91337.0,0.219484]
[1731989614304,0.21759273,91338.0,91337.0,0.219484]
[1731989614521,0.18489354,91338.0,91337.0,0.219484]
[1731989614747,0.02043699,91338.0,91337.0,0.219484]
[1731989615662,0.02043699,91338.0,91337.0,0.44810056]
[1731989615927,0.16445655,91349.0,91347.0,0.0813]
[1731989616148,0.16445655,91349.0,91348.0,0.109471]
[1731989616352,0.05308764,91349.0,91348.0,0.109471]
[1731989616625,0.05308764,91349.0,91348.0,0.119471]
[1731989616626,0.02041832,91349.0,91348.0,0.119471]
[1731989617547,0.0017086,91356.0,91355.0,0.109463]
[1731989617774,0.02210828,91356.0,91355.0,0.23377956]
[1731989618933,0.02210828,91356.0,91355.0,0.109463]
[1731989619162,0.05473217,91356.0,91355.0,0.109463]
[1731989619880,0.05573217,91356.0,91355.0,0.109463]
[1731989620325,0.05573217,91356.0,91355.0,0.112463]
[1731989620555,0.02310828,91356.0,91355.0,0.112463]
[1731989621251,0.13217083,91356.0,91348.0,0.10947]
[1731989621462,0.28746645,91355.0,91342.0,0.109478]
[1731989621696,0.28746645,91355.0,91340.0,0.1]
[1731989621697,0.21893,91353.0,91343.0,0.109477]
[1731989621907,0.10947,91349.0,91343.0,0.109477]
[1731989622123,0.1316501,91348.0,91343.0,0.109477]
[1731989622374,0.02039968,91347.0,91343.0,0.109477]
[1731989622592,0.12946223,91346.0,91343.0,0.12658357]
[1731989622830,0.10906255,91346.0,91343.0,0.12658357]
[1731989623040,0.02705603,91345.0,91343.0,0.12658357]
[1731989623285,0.02036842,91344.0,91343.0,0.01710657]
[1731989623537,0.12984442,91344.0,91343.0,0.01710657]
[1731989623777,0.02036842,91344.0,91343.0,0.01710657]
[1731989624016,0.05964551,91344.0,91343.0,0.01710657]
[1731989624777,0.05964551,91344.0,91343.0,0.01910657]
[1731989625745,0.06364551,91344.0,91343.0,0.01910657]
[1731989625980,0.05964551,91344.0,91343.0,0.01910657]
[1731989626219,0.06584232,91344.0,91343.0,0.01710657]
[1731989626473,0.06584232,91344.0,91343.0,0.01910657]
[1731989626932,0.06584232,91344.0,91343.0,0.01710657]
[1731989627158,0.06584232,91344.0,91343.0,0.12858357]
[1731989627429,0.06365445,91344.0,91343.0,0.12858357]
[1731989628115,0.06365445,91344.0,91343.0,0.12658357]
[1731989628331,0.05965445,91344.0,91343.0,0.12658357]
[1731989628767,0.06365445,91344.0,91343.0,0.12658357]
[1731989628998,0.04328259,91344.0,91343.0,0.12658357]
[1731989629220,0.04328259,91344.0,91343.0,0.12858357]
[1731989629434,0.04328259,91344.0,91343.0,0.111477]
[1731989629658,0.01239721,91344.0,91343.0,0.111477]
[1731989630520,0.01239721,91344.0,91343.0,0.002]
[1731989632120,0.23093576,91344.0,91343.0,0.002]
[1731989632339,0.2635565,91344.0,91343.0,0.002]
[1731989632575,0.3061772,91344.0,91343.0,0.002]
[1731989632840,0.3061772,91344.0,91343.0,0.01710915]
[1731989633050,0.3021772,91344.0,91343.0,0.01710915]
[1731989633273,0.3061772,91344.0,91343.0,0.01910915]
[1731989633732,0.3061772,91344.0,91343.0,0.01710915]
[1731989633990,0.3141772,91344.0,91343.0,0.01710915]
[1731989634958,0.3351772,91344.0,91343.0,0.01710915]
[1731989635167,0.3311772,91344.0,91343.0,0.01710915]
[1731989635431,0.3441772,91344.0,91343.0,0.01710915]
[1731989635682,0.3521772,91344.0,91343.0,0.01710915]
[1731989635915,0.4800772,91344.0,91343.0,0.01710915]
[1731989636813,0.44376098,91344.0,91343.0,0.01710915]
[1731989637067,0.48638168,91344.0,91343.0,0.01810915]
[1731989637300,0.4400772,91344.0,91343.0,0.01810915]
[1731989637587,0.4726979,91344.0,91343.0,0.01810915]
[1731989637810,0.69199024,91344.0,91321.0,0.27395955]
[1731989638025,0.01,91330.0,91321.0,0.16445655]
[1731989638245,0.109498,91326.0,91320.0,0.109503]
[1731989638462,0.14387112,91325.0,91320.0,0.109503]
[1731989638690,0.14387112,91325.0,91321.0,0.01711065]
[1731989638691,0.0326207,91324.0,91321.0,0.01711065]
[1731989638932,0.0326207,91323.0,91321.0,0.12661365]
[1731989639184,0.0326207,91322.0,91321.0,0.12661365]
[1731989639421,0.0326207,91322.0,91321.0,0.109503]
[1731989639679,0.00547313,91322.0,91319.0,0.1103598]
[1731989639895,0.03809383,91322.0,91320.0,0.013]
[1731989640135,0.0326207,91321.0,91320.0,0.013]
[1731989640851,0.03809383,91321.0,91320.0,0.013]
[1731989641086,0.05850337,91321.0,91320.0,0.122505]
[1731989641523,0.05854501,91321.0,91320.0,0.109505]
[1731989641747,0.05854501,91321.0,91319.0,0.0008548]
[1731989641977,0.00747313,91321.0,91320.0,0.109505]
[1731989642209,0.06053333,91321.0,91320.0,0.109505]
[1731989642435,0.06153333,91321.0,91320.0,0.118505]
[1731989642727,0.06153333,91321.0,91320.0,0.13561621]
[1731989642955,0.05953333,91321.0,91320.0,0.13561621]
[1731989643202,0.06153333,91321.0,91320.0,0.13561621]
[1731989643419,0.0288809,91321.0,91320.0,0.21811621]
[1731989643640,0.0288809,91321.0,91320.0,0.201005]
[1731989643858,0.0208809,91321.0,91320.0,0.201005]
[1731989644312,0.0188809,91321.0,91320.0,0.256905]
[1731989644744,0.0208809,91321.0,91320.0,0.256905]
[1731989645193,0.0218809,91321.0,91320.0,0.256905]
[1731989645414,0.001,91321.0,91320.0,0.247905]
[1731989645863,0.003,91321.0,91320.0,0.253905]
[1731989646080,0.003,91321.0,91320.0,0.29789257]
[1731989646297,0.003,91321.0,91320.0,0.29189257]
[1731989646758,0.003,91321.0,91320.0,0.3090029]
[1731989646972,0.004,91321.0,91320.0,0.3190029]
[1731989647195,0.004,91321.0,91320.0,0.27501533]
[1731989647419,0.001,91321.0,91320.0,0.27501533]
[1731989647640,0.004,91321.0,91320.0,0.27501533]
[1731989648310,0.006,91321.0,91320.0,0.27501533]
[1731989649361,0.006,91321.0,91320.0,0.257905]
[1731989654227,0.03875668,91321.0,91320.0,0.257905]
[1731989654439,0.03875668,91321.0,91320.0,0.2587595]
[1731989654909,0.03875668,91321.0,91320.0,0.2487595]
[1731989656038,0.05923434,91321.0,91320.0,0.2487595]
[1731989656731,0.05923434,91321.0,91320.0,0.2028595]
[1731989657179,0.16873734,91321.0,91320.0,0.0108545]
[1731989658154,0.16373734,91321.0,91320.0,0.0108545]
[1731989658368,0.05323434,91321.0,91320.0,0.0008545]
[1731989658581,0.05623434,91321.0,91320.0,0.0108545]
[1731989658799,0.05624134,91321.0,91320.0,0.0108545]
[1731989659033,0.04824134,91321.0,91320.0,0.0008545]
[1731989659255,0.05624134,91321.0,91320.0,0.0008545]
[1731989660382,0.04824134,91321.0,91320.0,0.0008545]
[1731989660602,0.04824134,91321.0,91320.0,0.1103595]
[1731989660828,0.05524134,91321.0,91320.0,0.0008545]
[1731989661492,0.04824134,91321.0,91320.0,0.1103595]
[1731989661737,0.05524134,91321.0,91320.0,0.0008545]
[1731989664032,0.04824134,91321.0,91320.0,0.0018545]
[1731989664271,0.05524134,91321.0,91320.0,0.0018545]
[1731989664744,0.06224134,91321.0,91320.0,0.0018545]
[1731989665365,0.06224134,91321.0,91320.0,0.0008545]
[1731989665654,0.04824134,91321.0,91320.0,0.0008545]
[1731989665876,0.05524134,91321.0,91320.0,0.0008545]
[1731989667003,0.05695094,91321.0,91320.0,0.0008545]
[1731989668556,0.05095094,91321.0,91320.0,0.0008545]
[1731989668818,0.05995094,91321.0,91320.0,0.27462187]
[1731989669317,0.04447559,91321.0,91320.0,0.28462187]
[1731989669533,0.04347559,91321.0,91320.0,0.28462187]
[1731989670489,0.03447805,91321.0,91320.0,0.28462187]
[1731989670741,0.04147805,91321.0,91320.0,0.28462187]
[1731989670976,0.06195809,91321.0,91320.0,0.28462187]
[1731989671422,0.06395809,91321.0,91320.0,0.28462187]
[1731989671640,0.03118964,91321.0,91320.0,0.28462187]
[1731989671860,0.03218964,91321.0,91320.0,0.29762187]
[1731989673943,0.02418964,91321.0,91320.0,0.29762187]
[1731989674182,0.02148004,91321.0,91320.0,0.29762187]
[1731989674502,0.02348004,91321.0,91320.0,0.29762187]
[1731989674717,0.02248004,91321.0,91320.0,0.28462187]
[1731989674951,0.02348004,91321.0,91320.0,0.34212393]
[1731989677308,0.02348004,91321.0,91320.0,0.46512393]
[1731989678248,0.02348004,91321.0,91320.0,0.3160595]
[1731989678485,0.02348004,91321.0,91320.0,0.39762187]
[1731989678711,0.02518964,91321.0,91320.0,0.39762187]
[1731989679162,0.0047096,91321.0,91320.0,0.39762187]
[1731989679395,0.0047096,91321.0,91320.0,0.44402187]
[1731989679642,0.0047096,91321.0,91320.0,0.54858424]
[1731989680336,0.0047096,91321.0,91320.0,0.65964679]
[1731989680850,0.0047096,91321.0,91320.0,0.75796047]
[1731989681081,0.16445655,91338.0,91337.0,0.270884]
[1731989681299,0.16445655,91338.0,91337.0,0.35244637]
[1731989681530,0.001709,91343.0,91342.0,0.119478]
[1731989681746,0.001709,91343.0,91342.0,0.28304037]
[1731989682866,0.003709,91343.0,91342.0,0.30304037]
[1731989683097,0.003709,91343.0,91342.0,0.129478]
[1731989683377,0.14362588,91343.0,91342.0,0.02]
[1731989683590,0.03633675,91343.0,91342.0,0.02]
[1731989683862,0.14581375,91343.0,91342.0,0.02]
[1731989684089,0.2419756,91343.0,91337.0,0.109484]
[1731989684319,0.119483,91339.0,91327.0,0.08156237]
[1731989684537,0.12950243,91338.0,91332.0,0.109489]
[1731989684789,0.02043988,91337.0,91336.0,0.109485]
[1731989685285,0.00190075,91342.0,91341.0,0.109479]
[1731989685497,0.02233566,91342.0,91341.0,0.109479]
[1731989686243,0.05503336,91342.0,91341.0,0.109479]
[1731989686464,0.02233409,91342.0,91341.0,0.109479]
[1731989686684,0.02233409,91342.0,91339.0,0.109481]
[1731989686923,0.02043334,91341.0,91340.0,0.10948]
[1731989687355,0.02043334,91341.0,91340.0,0.109481]
[1731989687574,0.02043334,91341.0,91336.0,0.218971]
[1731989687787,0.02043334,91340.0,91330.0,0.0812]
[1731989687994,0.0345941,91342.0,91340.0,0.005]
[1731989688212,0.02143586,91341.0,91340.0,0.009]
[1731989688641,0.02143586,91341.0,91340.0,0.005]
[1731989688859,0.01343586,91341.0,91340.0,0.005]
[1731989689074,0.01343586,91341.0,91340.0,0.114481]
[1731989689796,0.01343586,91341.0,91340.0,0.117481]
[1731989690455,0.09816342,91346.0,91340.0,0.117481]
[1731989690456,0.09815195,91348.0,91347.0,0.109472]
[1731989690675,0.10906255,91348.0,91347.0,0.109472]
[1731989691158,0.10906255,91348.0,91344.0,0.109475]
[1731989691379,0.03269335,91352.0,91345.0,0.21895]
[1731989691593,0.03269335,91355.0,91344.0,0.0761]
[1731989691815,0.16616515,91356.0,91344.0,0.0761]
[1731989692030,0.16616515,91356.0,91347.0,0.109472]
[1731989692031,0.003,91348.0,91347.0,0.109472]
[1731989692478,0.07660582,91360.0,91356.0,0.10946]
[1731989692930,0.07660582,91360.0,91354.0,0.218928]
[1731989693168,0.0470086,91361.0,91356.0,0.109461]
[1731989693381,0.15607115,91361.0,91356.0,0.109461]
[1731989694075,0.15607115,91361.0,91357.0,0.10946]
[1731989694076,0.027,91360.0,91357.0,0.10946]
[1731989694520,0.027,91360.0,91358.0,0.109459]
[1731989694967,0.027,91360.0,91356.0,0.004]
[1731989694968,0.027,91360.0,91356.0,0.005]
[1731989695498,0.027,91360.0,91356.0,0.004]
[1731989695726,0.109458,91359.0,91358.0,0.001]
[1731989695940,0.118457,91360.0,91358.0,0.001]
[1731989696827,0.109457,91360.0,91356.0,0.002]
[1731989697067,0.15607115,91361.0,91356.0,0.002]
[1731989697307,0.15607115,91361.0,91356.0,0.001]
[1731989697535,0.122457,91360.0,91358.0,0.001]
[1731989697772,0.122457,91360.0,91355.0,0.109462]
[1731989697773,0.013,91360.0,91355.0,0.109462]
[1731989698210,0.109472,91348.0,91336.0,0.328455]
[1731989698483,0.218937,91351.0,91332.0,0.16445655]
[1731989698484,0.1303,91346.0,91332.0,0.16445655]
[1731989698711,0.1303,91346.0,91321.0,0.299305]
[1731989698712,0.109485,91337.0,91327.0,0.218993]
[1731989698971,0.109485,91337.0,91321.0,0.0803]
[1731989698972,0.10906255,91337.0,91321.0,0.0803]
[1731989699206,0.41505824,91342.0,91335.0,0.109487]
[1731989699207,0.10906255,91336.0,91335.0,0.109487]
[1731989699438,0.109488,91334.0,91319.0,0.0008548]
[1731989699685,0.10906255,91333.0,91332.0,0.022]
[1731989700145,0.10906255,91333.0,91332.0,0.13149]
[1731989700398,0.09803348,91335.0,91332.0,0.13149]
[1731989700626,0.20709603,91334.0,91326.0,0.218995]
[1731989700873,0.20709603,91334.0,91333.0,0.109489]
[1731989701104,0.20709603,91334.0,91321.0,0.023]
[1731989701105,0.10906255,91334.0,91330.0,0.109492]
[1731989701332,0.10906255,91334.0,91328.0,0.109495]
[1731989701611,0.10906255,91334.0,91329.0,0.109493]
[1731989701856,0.20709606,91334.0,91332.0,0.005]
[1731989702091,0.09803351,91333.0,91332.0,0.005]
[1731989702327,0.10303351,91333.0,91332.0,0.006]
[1731989702558,0.02543809,91333.0,91332.0,0.005]
[1731989702827,0.12347132,91333.0,91332.0,0.005]
[1731989703046,0.10303323,91333.0,91332.0,0.10949]
[1731989703279,0.20709578,91334.0,91333.0,0.109489]
[1731989703519,0.0017092,91339.0,91329.0,0.218988]
[1731989703520,0.06486691,91335.0,91334.0,0.109488]
[1731989703736,0.14705026,91337.0,91334.0,0.109488]
[1731989703955,0.14705026,91337.0,91329.0,0.218988]
[1731989703956,0.05830095,91336.0,91330.0,0.109491]
[1731989704187,0.109485,91337.0,91330.0,0.109491]
[1731989704427,0.14705026,91338.0,91329.0,0.218988]
[1731989704657,0.14705026,91338.0,91335.0,0.109485]
[1731989704658,0.30512957,91338.0,91335.0,0.109485]
[1731989704885,0.0017092,91339.0,91335.0,0.109485]
[1731989704886,0.14707973,91336.0,91335.0,0.109485]
[1731989705136,0.14707973,91336.0,91332.0,0.003]
[1731989705368,0.31359412,91333.0,91332.0,0.003]
[1731989705629,0.21855155,91333.0,91332.0,0.002]
[1731989705852,0.58050889,91333.0,91332.0,0.002]
[1731989706074,0.109494,91330.0,91320.0,0.0008545]
[1731989706314,0.19609019,91328.0,91323.0,0.109501]
[1731989706545,0.109495,91329.0,91323.0,0.109501]
[1731989706778,0.36192421,91328.0,91323.0,0.109501]
[1731989706998,0.36192421,91328.0,91320.0,0.0008545]
[1731989706999,0.109494,91329.0,91324.0,0.109499]
[1731989707449,0.14706407,91328.0,91324.0,0.109499]
[1731989707933,0.109494,91329.0,91324.0,0.109499]
[1731989708379,0.21855755,91328.0,91320.0,0.0008545]
[1731989708598,0.22955755,91328.0,91327.0,0.0018546]
[1731989708820,0.22955755,91328.0,91327.0,0.0008546]
[1731989709036,0.2671261,91328.0,91327.0,0.0008546]
[1731989709287,0.3766211,91328.0,91327.0,0.0018546]
[1731989709515,0.3656211,91328.0,91327.0,0.0018546]
[1731989709744,0.37661176,91328.0,91327.0,0.0028546]
[1731989710192,0.38061176,91328.0,91327.0,0.0028546]
[1731989710435,0.12406255,91328.0,91312.0,0.219029]
[1731989710695,0.12406255,91328.0,91327.0,0.109496]
[1731989710696,0.015,91328.0,91327.0,0.109496]
[1731989711928,0.004,91328.0,91327.0,0.109496]
[1731989712179,0.16445655,91333.0,91332.0,0.10949]
[1731989712666,0.0017092,91339.0,91338.0,0.109483]
[1731989715030,0.0017092,91339.0,91338.0,0.119483]
[1731989715031,0.0027092,91339.0,91338.0,0.119483]
[1731989715492,0.0027092,91339.0,91338.0,0.125483]
[1731989717348,0.0027092,91339.0,91338.0,0.200983]
[1731989717886,0.0027092,91339.0,91338.0,0.60155822]
[1731989718097,0.0017092,91339.0,91338.0,0.46514555]